[Event "10th Iberoamericano-ch 2024"]
[Site "Linares"]
[Date "2024.09.30"]
[Round "8.17"]
[White "Perea Fruet, Lorenzo"]
[Black "Santos Flores, Alberto"]
[Result "1/2-1/2"]
[ECO "C07"]
[WhiteElo "2389"]
[BlackElo "2168"]
[Annotator "RC"]
[PlyCount "138"]
[EventDate "2024.09.25"]
[EventType "swiss"]
[EventCountry "ESP"]
[SourceTitle "playchess.com"]
[Source "ChessBase"]
[SourceQuality "1"]
[TimeControl "5400+30"]

1. e4 {[%emt 0:00:03]} e6 {[%emt 0:00:21]} 2. d4 {[%emt 0:00:06]} d5 {[%emt 0:00:06]} 3. Nd2 {[%emt 0:00:02]} c5 {[%emt 0:01:44]} 4. Ngf3 {[%emt 0:00:04]} cxd4 {[%emt 0:00:57]} 5. Nxd4 {[%emt 0:00:04]} Nf6 {[%emt 0:00:04]} 6. e5 {[%emt 0:00:04]} Nfd7 {[%emt 0:00:22]} 7. N2f3 {[%emt 0:00:04]} Nc6 {[%emt 0:01:36]} 8. Bf4 {[%emt 0:00:04]} Be7 {[%emt 0:05:26]} 9. Bb5 {[%emt 0:01:02]} Qc7 {[%emt 0:03:32]} 10. O-O {[%emt 0:06:23]} a6 {[%emt 0:00:10]} 11. Ba4 {[%emt 0:05:21]} Nc5 {[%emt 0:08:05]} 12. c3 {[%emt 0:02:59]} Nxa4 {[%emt 0:02:06]} 13. Qxa4 {[%emt 0:01:15]} Bd7 {[%emt 0:00:42]} 14. Qd1 {[%emt 0:03:16]} Nxd4 {[%emt 0:20:08]} 15. Nxd4 {[%emt 0:01:22]} g5 {[%emt 0:01:50]} 16. Bg3 {[%emt 0:02:25]} h5 {[%emt 0:00:06]} 17. h3 {[%emt 0:02:59]} O-O-O {[%emt 0:01:17]} 18. f4 {[%emt 0:02:24]} gxf4 {[%emt 0:02:08]} 19. Bxf4 {[%emt 0:03:05]} Rdg8 {[%emt 0:00:25]} 20. Qf3 {[%emt 0:03:28]} Be8 {[%emt 0:08:41]} 21. Rac1 {[%emt 0:08:07]} Kb8 {[%emt 0:00:56]} 22. Rf2 {[%emt 0:06:42]} Rg6 {[%emt 0:07:02]} 23. Kh1 {[%emt 0:02:17]} h4 {[%emt 0:00:25]} 24. Rfc2 {[%emt 0:02:06]} Qb6 {[%emt 0:03:06]} 25. Qe3 {[%emt 0:15:33]} Bd7 {[%emt 0:02:51]} 26. Nb3 {[%emt 0:05:58]} Qxe3 {[%emt 0:01:16]} 27. Bxe3 {[%emt 0:02:25]} Bg5 {[%emt 0:08:24]} 28. Bxg5 {[%emt 0:04:34]} Rxg5 {[%emt 0:00:01]} 29. Rf2 {[%emt 0:00:32]} Rxe5 {[%emt 0:06:19]} 30. Rxf7 {[%emt 0:00:18]} Be8 {[%emt 0:00:32]} 31. Rf2 {[%emt 0:03:01]} Bg6 {[%emt 0:00:32]} 32. Kh2 {[%emt 0:01:09]} Re3 {[%emt 0:02:41]} 33. Rcf1 {[%emt 0:01:30]} Be4 {[%emt 0:01:26]} 34. Nc5 {[%emt 0:01:34]} Bf5 {[%emt 0:02:15]} 35. Nb3 {[%emt 0:00:56]} Be4 {[%emt 0:00:53]} 36. Rf8+ {[%emt 0:04:05]} Rxf8 {[%emt 0:00:04]} 37. Rxf8+ {[%emt 0:00:01]} Ka7 {[%emt 0:00:51]} 38. Rf2 {[%emt 0:00:13]} Kb6 {[%emt 0:01:09]} 39. Nd2 {[%emt 0:00:52]} Kc6 {[%emt 0:00:43]} 40. Nf1 {[%emt 0:01:49]} Re1 {[%emt 0:00:27]} 41. g3 {[%emt 0:00:22]} Bd3 {[%emt 0:01:36]} 42. Nd2 {[%emt 0:00:43]} e5 {[%emt 0:01:49]} 43. Nf3 {[%emt 0:00:22]} hxg3+ {[%emt 0:00:06]} 44. Kxg3 {[%emt 0:00:01]} Re3 {[%emt 0:00:07]} 45. Kh2 {[%emt 0:00:08]} Kd6 {[%emt 0:02:11]} 46. h4 {[%emt 0:00:12]} Be2 {[%emt 0:01:01]} 47. Ng1 {[%emt 0:00:37]} Bg4 {[%emt 0:00:23]} 48. Rf6+ {[%emt 0:00:36]} Ke7 {[%emt 0:01:01]} 49. Rg6 {[%emt 0:00:15]} Bh5 {[%emt 0:00:01]} 50. Rg5 {[%emt 0:03:12]} Bf7 {[%emt 0:00:11]} 51. h5 {[%emt 0:00:16]} Kf6 {[%emt 0:01:01]} 52. h6 {[%emt 0:00:08]} Bg6 {[%emt 0:00:17]} 53. Rg3 {[%emt 0:00:20]} Re1 {[%emt 0:00:23]} 54. Rh3 {[%emt 0:00:23]} Bh7 {[%emt 0:00:15]} 55. Rg3 {[%emt 0:01:21]} d4 {[%emt 0:02:32]} 56. cxd4 {[%emt 0:00:25]} exd4 {[%emt 0:00:00]} 57. Rg7 {[%emt 0:01:18]} d3 {[%emt 0:00:50]} 58. Nf3 {[%emt 0:00:04]} Re2+ {[%emt 0:00:09]} 59. Kg3 {[%emt 0:00:39]} Bf5 {[%emt 0:02:10]} 60. Rxb7 {[%emt 0:00:56]} d2 {[%emt 0:00:12]} 61. Rb6+ {[%emt 0:00:08]} Ke7 {[%emt 0:00:26]} 62. Nxd2 {[%emt 0:00:22]} Rxd2 {[%emt 0:00:05]} 63. Rxa6 {[%emt 0:00:09]} Rxb2 {[%emt 0:00:44]} 64. h7 {[%emt 0:00:54]} Bxh7 {[%emt 0:02:34]} 65. Ra7+ {[%emt 0:00:12]} Kd6 {[%emt 0:00:01]} 66. Rxh7 {[%emt 0:00:09]} Rxa2 {[%emt 0:00:01]} 67. Rh3 {[%emt 0:00:09]} Ra3+ {[%emt 0:00:04]} 68. Kg2 {[%emt 0:00:04]} Rxh3 {[%emt 0:00:05]} 69. Kxh3 Ke5 1/2-1/2

[Event "10th Iberoamericano-ch 2024"]
[Site "Linares"]
[Date "2024.09.30"]
[Round "8.18"]
[White "Garzon Zapatanga, Christopher Leonel"]
[Black "Prado Lobo, Jonas"]
[Result "1/2-1/2"]
[ECO "C02"]
[WhiteElo "2216"]
[BlackElo "2385"]
[Annotator "RC"]
[PlyCount "127"]
[EventDate "2024.09.25"]
[EventType "swiss"]
[EventCountry "ESP"]
[SourceTitle "playchess.com"]
[Source "ChessBase"]
[SourceQuality "1"]
[TimeControl "5400+30"]

1. e4 {[%emt 0:00:45]} e6 {[%emt 0:00:05]} 2. d4 {[%emt 0:00:51]} d5 {[%emt 0:00:04]} 3. e5 {[%emt 0:00:04]} c5 {[%emt 0:00:04]} 4. c3 {[%emt 0:00:02]} Nc6 {[%emt 0:00:06]} 5. Nf3 {[%emt 0:00:03]} Qb6 {[%emt 0:00:05]} 6. a3 {[%emt 0:01:15]} Nh6 {[%emt 0:00:28]} 7. b4 {[%emt 0:02:48]} cxd4 {[%emt 0:00:04]} 8. cxd4 {[%emt 0:00:15]} Nf5 {[%emt 0:00:08]} 9. Bb2 {[%emt 0:01:30]} Bd7 {[%emt 0:00:04]} 10. Be2 {[%emt 0:00:25]} Be7 {[%emt 0:00:04]} 11. O-O {[%emt 0:01:12]} h5 {[%emt 0:00:02]} 12. Qd2 {[%emt 0:14:55]} g5 {[%emt 0:13:21]} 13. Rd1 {[%emt 0:12:32]} g4 {[%emt 0:02:34]} 14. Ne1 {[%emt 0:00:13]} Rc8 {[%emt 0:03:22]} 15. Nc3 {[%emt 0:08:52]} Ncxd4 {[%emt 0:27:33]} 16. Nxd5 {[%emt 0:00:22]} Nxe2+ {[%emt 0:01:47]} 17. Qxe2 {[%emt 0:00:06]} exd5 {[%emt 0:01:58]} 18. e6 {[%emt 0:00:07]} Qxe6 {[%emt 0:00:26]} 19. Qxe6 {[%emt 0:00:08]} Bxe6 {[%emt 0:00:10]} 20. Bxh8 {[%emt 0:00:06]} f6 {[%emt 0:00:12]} 21. Rac1 {[%emt 0:00:34]} Rb8 {[%emt 0:03:35]} 22. Nd3 {[%emt 0:02:53]} Kd7 {[%emt 0:03:55]} 23. Bxf6 {[%emt 0:01:29]} Bxf6 {[%emt 0:00:06]} 24. Nc5+ {[%emt 0:00:03]} Kd6 {[%emt 0:09:41]} 25. Ne4+ {[%emt 0:00:35]} Ke5 {[%emt 0:01:13]} 26. Nc5 {[%emt 0:00:23]} Ng7 {[%emt 0:01:57]} 27. Rc2 {[%emt 0:28:37]} b6 {[%emt 0:04:50]} 28. Na6 {[%emt 0:04:07]} Rc8 {[%emt 0:07:34]} 29. Nc7 {[%emt 0:08:07]} Kf5 {[%emt 0:01:09]} 30. Nxd5 {[%emt 0:01:01]} Rxc2 {[%emt 0:00:24]} 31. Ne3+ {[%emt 0:00:04]} Ke4 {[%emt 0:04:19]} 32. Nxc2 {[%emt 0:00:07]} Bb3 {[%emt 0:01:06]} 33. Rd6 {[%emt 0:07:08]} Ne8 {[%emt 0:03:58]} 34. Rc6 {[%emt 0:00:32]} Ba4 {[%emt 0:01:32]} 35. Rc4+ {[%emt 0:00:31]} Kd3 {[%emt 0:01:42]} 36. Ne3 {[%emt 0:00:05]} Nd6 {[%emt 0:04:01]} 37. Rc7 {[%emt 0:00:54]} Nb5 {[%emt 0:01:40]} 38. Rd7+ {[%emt 0:00:30]} Ke4 {[%emt 0:00:22]} 39. Rh7 {[%emt 0:00:05]} Nxa3 {[%emt 0:01:49]} 40. Rxh5 {[%emt 0:00:22]} Bc3 {[%emt 0:00:53]} 41. Rh4 {[%emt 0:00:06]} Kd3 {[%emt 0:01:16]} 42. Rxg4 {[%emt 0:00:21]} Nc2 {[%emt 0:00:49]} 43. Nd5 {[%emt 0:00:15]} Bxb4 {[%emt 0:00:37]} 44. Nxb4+ {[%emt 0:00:10]} Nxb4 {[%emt 0:00:01]} 45. Rxb4 {[%emt 0:00:09]} b5 {[%emt 0:00:21]} 46. h4 {[%emt 0:00:27]} a5 {[%emt 0:00:23]} 47. Rb1 {[%emt 0:00:04]} Kc2 {[%emt 0:00:37]} 48. Ra1 {[%emt 0:00:06]} Kb2 {[%emt 0:00:13]} 49. Re1 {[%emt 0:00:26]} Bc2 {[%emt 0:00:59]} 50. Re5 {[%emt 0:01:58]} Bd3 {[%emt 0:00:13]} 51. h5 {[%emt 0:00:37]} a4 {[%emt 0:00:05]} 52. h6 {[%emt 0:00:05]} b4 {[%emt 0:00:15]} 53. Re2+ {[%emt 0:01:06]} Kc1 {[%emt 0:00:50]} 54. Re1+ {[%emt 0:00:10]} Kd2 {[%emt 0:00:50]} 55. Ra1 {[%emt 0:00:20]} a3 {[%emt 0:00:15]} 56. g4 {[%emt 0:00:10]} Bc2 {[%emt 0:01:48]} 57. f4 {[%emt 0:00:58]} b3 {[%emt 0:00:07]} 58. h7 {[%emt 0:00:05]} Bxh7 {[%emt 0:00:35]} 59. Rxa3 {[%emt 0:00:10]} Bc2 {[%emt 0:00:35]} 60. Rxb3 {[%emt 0:00:27]} Bxb3 {[%emt 0:00:01]} 61. Kf2 {[%emt 0:00:22]} Kd3 {[%emt 0:00:04]} 62. f5 {[%emt 0:00:17]} Ke4 {[%emt 0:00:07]} 63. Kg3 {[%emt 0:00:03]} Ke5 {[%emt 0:00:07]} 64. Kh4 {[%emt 0:00:00]} 1/2-1/2

[Event "10th Iberoamericano-ch 2024"]
[Site "Linares"]
[Date "2024.09.30"]
[Round "8.19"]
[White "Bendayan Claros, Aaron"]
[Black "Panelo, Marcelo"]
[Result "1-0"]
[ECO "E20"]
[WhiteElo "2200"]
[BlackElo "2364"]
[Annotator "RC"]
[PlyCount "53"]
[EventDate "2024.09.25"]
[EventType "swiss"]
[EventCountry "ESP"]
[SourceTitle "playchess.com"]
[Source "ChessBase"]
[SourceQuality "1"]
[TimeControl "5400+30"]

1. d4 {[%emt 0:00:03]} Nf6 {[%emt 0:00:50]} 2. c4 {[%emt 0:00:09]} e6 {[%emt 0:00:33]} 3. Nc3 {[%emt 0:00:12]} Bb4 {[%emt 0:01:02]} 4. f3 {[%emt 0:00:59]} c5 {[%emt 0:03:11]} 5. d5 {[%emt 0:00:09]} exd5 {[%emt 0:00:07]} 6. cxd5 {[%emt 0:00:10]} d6 {[%emt 0:00:07]} 7. e4 {[%emt 0:00:36]} Nbd7 {[%emt 0:00:12]} 8. Nge2 {[%emt 0:00:40]} O-O {[%emt 0:02:24]} 9. Ng3 {[%emt 0:00:44]} Ne5 {[%emt 0:00:08]} 10. Be2 {[%emt 0:01:15]} a6 {[%emt 0:08:28]} 11. O-O {[%emt 0:03:29]} b5 {[%emt 0:00:27]} 12. a4 {[%emt 0:00:25]} Bd7 {[%emt 0:05:42]} 13. axb5 {[%emt 0:04:15]} Bxc3 {[%emt 0:00:40]} 14. bxc3 {[%emt 0:00:10]} axb5 {[%emt 0:00:08]} 15. Rxa8 {[%emt 0:00:28]} Qxa8 {[%emt 0:00:07]} 16. Bg5 {[%emt 0:00:17]} Kh8 {[%emt 0:12:53]} 17. Bxf6 {[%emt 0:19:29]} gxf6 {[%emt 0:00:01]} 18. f4 {[%emt 0:03:39]} Ng6 {[%emt 0:00:28]} 19. f5 {[%emt 0:00:07]} Ne5 {[%emt 0:00:34]} 20. Qd2 {[%emt 0:01:01]} Rg8 {[%emt 0:03:53]} 21. Qh6 {[%emt 0:01:24]} Qf8 {[%emt 0:00:04]} 22. Qxf6+ {[%emt 0:01:06]} Qg7 {[%emt 0:00:02]} 23. Qxd6 {[%emt 0:01:56]} c4 {[%emt 0:00:04]} 24. Rf2 {[%emt 0:07:55]} Re8 {[%emt 0:01:54]} 25. Nh5 {[%emt 0:06:51]} Qg5 {[%emt 0:00:03]} 26. Nf6 {[%emt 0:00:51]} Qc1+ {[%emt 0:00:03]} 27. Bf1 {[%emt 0:00:50]} 1-0

[Event "10th Iberoamericano-ch 2024"]
[Site "Linares"]
[Date "2024.09.30"]
[Round "8.20"]
[White "Garcia Fernandez, Victor"]
[Black "Galvan Cipriani, Viviana"]
[Result "1-0"]
[ECO "A50"]
[WhiteElo "2353"]
[BlackElo "2141"]
[Annotator "RC"]
[PlyCount "129"]
[EventDate "2024.09.25"]
[EventType "swiss"]
[EventCountry "ESP"]
[SourceTitle "playchess.com"]
[Source "ChessBase"]
[SourceQuality "1"]
[TimeControl "5400+30"]

1. d4 {[%emt 0:00:02]} Nf6 {[%emt 0:08:16]} 2. c4 {[%emt 0:00:50]} e6 {[%emt 0:00:13]} 3. Bf4 {[%emt 0:00:59]} d5 {[%emt 0:00:24]} 4. cxd5 {[%emt 0:00:09]} exd5 {[%emt 0:00:05]} 5. e3 {[%emt 0:00:13]} Bd6 {[%emt 0:00:18]} 6. Bxd6 {[%emt 0:00:05]} Qxd6 {[%emt 0:00:05]} 7. Bd3 {[%emt 0:00:08]} O-O {[%emt 0:02:29]} 8. Nc3 {[%emt 0:00:09]} c6 {[%emt 0:01:18]} 9. h3 {[%emt 0:00:21]} Re8 {[%emt 0:00:27]} 10. Nf3 {[%emt 0:00:33]} Nbd7 {[%emt 0:00:15]} 11. Qc2 {[%emt 0:00:14]} a5 {[%emt 0:05:24]} 12. O-O {[%emt 0:04:39]} g6 {[%emt 0:02:29]} 13. Rfc1 {[%emt 0:10:03]} Rb8 {[%emt 0:18:29]} 14. Na4 {[%emt 0:09:49]} Ne4 {[%emt 0:07:09]} 15. Bxe4 {[%emt 0:01:11]} Rxe4 {[%emt 0:00:59]} 16. a3 {[%emt 0:00:11]} h6 {[%emt 0:03:33]} 17. Nc5 {[%emt 0:05:39]} Re8 {[%emt 0:02:04]} 18. b4 {[%emt 0:02:43]} Nb6 {[%emt 0:05:34]} 19. Ne5 {[%emt 0:06:01]} axb4 {[%emt 0:11:09]} 20. axb4 {[%emt 0:00:09]} Bf5 {[%emt 0:00:06]} 21. Qe2 {[%emt 0:01:27]} f6 {[%emt 0:01:15]} 22. Nf3 {[%emt 0:01:12]} g5 {[%emt 0:02:38]} 23. Nd2 {[%emt 0:02:31]} Kh7 {[%emt 0:01:16]} 24. b5 {[%emt 0:02:40]} cxb5 {[%emt 0:05:22]} 25. Qxb5 {[%emt 0:00:24]} Re7 {[%emt 0:00:32]} 26. Ra2 {[%emt 0:24:01]} Nc8 {[%emt 0:04:09]} 27. Ncb3 {[%emt 0:04:05]} Kg7 {[%emt 0:04:57]} 28. Rc5 {[%emt 0:05:24]} Nb6 {[%emt 0:01:22]} 29. Ra7 {[%emt 0:01:42]} Nc8 30. Ra1 {[%emt 0:00:19]} Nb6 {[%emt 0:03:07]} 31. Qe2 {[%emt 0:04:16]} Rh8 {[%emt 0:03:42]} 32. Qf3 {[%emt 0:06:12]} Bd3 {[%emt 0:03:02]} 33. Rc3 {[%emt 0:00:28]} Bg6 {[%emt 0:02:00]} 34. Nc5 {[%emt 0:00:33]} Ra8 {[%emt 0:00:31]} 35. Rxa8 {[%emt 0:00:46]} Nxa8 {[%emt 0:00:05]} 36. Ra3 {[%emt 0:01:12]} Nb6 {[%emt 0:00:05]} 37. Qe2 {[%emt 0:00:34]} Nd7 {[%emt 0:01:50]} 38. Qb5 {[%emt 0:02:31]} Nxc5 {[%emt 0:00:05]} 39. dxc5 {[%emt 0:00:17]} Qe5 {[%emt 0:00:37]} 40. Nf3 {[%emt 0:00:45]} Qe4 {[%emt 0:00:06]} 41. Ra7 {[%emt 0:00:19]} g4 {[%emt 0:02:31]} 42. hxg4 {[%emt 0:00:16]} Be8 {[%emt 0:00:32]} 43. Qb6 {[%emt 0:00:14]} Bc6 {[%emt 0:00:47]} 44. Nd4 {[%emt 0:02:22]} Qxg4 {[%emt 0:00:06]} 45. Qb1 {[%emt 0:00:18]} Rd7 {[%emt 0:00:47]} 46. Nf5+ {[%emt 0:01:59]} Kg6 {[%emt 0:00:09]} 47. Nd4+ {[%emt 0:01:41]} Qe4 {[%emt 0:01:06]} 48. Qe1 {[%emt 0:01:05]} Re7 {[%emt 0:00:24]} 49. Qd1 {[%emt 0:00:20]} h5 {[%emt 0:00:29]} 50. Ra8 {[%emt 0:00:20]} Re8 {[%emt 0:00:21]} 51. Ra3 {[%emt 0:00:28]} f5 {[%emt 0:00:47]} 52. Ne2 {[%emt 0:00:25]} Qg4 {[%emt 0:00:21]} 53. Nf4+ {[%emt 0:00:06]} Kh7 {[%emt 0:00:37]} 54. f3 {[%emt 0:01:15]} Qg5 {[%emt 0:00:08]} 55. Qd4 {[%emt 0:00:31]} h4 {[%emt 0:00:45]} 56. Nxd5 {[%emt 0:00:47]} Bxd5 {[%emt 0:00:35]} 57. Qxd5 {[%emt 0:00:01]} Re7 {[%emt 0:00:36]} 58. f4 {[%emt 0:00:49]} Qg6 {[%emt 0:00:31]} 59. Ra7 {[%emt 0:00:18]} Rg7 {[%emt 0:00:29]} 60. Rxb7 {[%emt 0:00:18]} Rxb7 {[%emt 0:00:28]} 61. Qxb7+ {[%emt 0:00:00]} Kg8 {[%emt 0:00:10]} 62. Qc8+ {[%emt 0:00:28]} Kh7 {[%emt 0:00:05]} 63. Qd7+ {[%emt 0:00:05]} Kg8 {[%emt 0:00:07]} 64. Qd8+ {[%emt 0:00:09]} Kf7 {[%emt 0:01:21]} 65. Qxh4 {[%emt 0:00:06]} 1-0

[Event "10th Iberoamericano-ch 2024"]
[Site "Linares"]
[Date "2024.09.30"]
[Round "8.21"]
[White "Rocha, Maximiliano"]
[Black "Jimenez Garcia, Emmanuel"]
[Result "0-1"]
[ECO "B30"]
[WhiteElo "2156"]
[BlackElo "2352"]
[Annotator "RC"]
[PlyCount "44"]
[EventDate "2024.09.25"]
[EventType "swiss"]
[EventCountry "ESP"]
[SourceTitle "playchess.com"]
[Source "ChessBase"]
[SourceQuality "1"]
[TimeControl "5400+30"]

1. e4 {[%emt 0:00:39]} c5 {[%emt 0:00:14]} 2. Nf3 {[%emt 0:00:17]} Nc6 {[%emt 0:00:08]} 3. Bb5 {[%emt 0:00:59]} e5 {[%emt 0:04:37]} 4. c3 {[%emt 0:00:46]} a6 {[%emt 0:01:49]} 5. Bc4 {[%emt 0:01:43]} Nf6 {[%emt 0:06:39]} 6. Qe2 {[%emt 0:03:48]} Be7 {[%emt 0:05:58]} 7. O-O {[%emt 0:05:51]} d6 {[%emt 0:00:49]} 8. h3 {[%emt 0:01:45]} b5 {[%emt 0:01:43]} 9. Bd5 {[%emt 0:05:14]} Nxd5 {[%emt 0:08:18]} 10. exd5 {[%emt 0:00:02]} Na7 {[%emt 0:10:08]} 11. d4 {[%emt 0:05:25]} exd4 {[%emt 0:03:19]} 12. Re1 {[%emt 0:06:12]} dxc3 {[%emt 0:06:58]} 13. Nxc3 {[%emt 0:00:40]} b4 {[%emt 0:02:06]} 14. Na4 {[%emt 0:00:47]} Nb5 {[%emt 0:07:03]} 15. Qe4 {[%emt 0:29:23]} Ra7 {[%emt 0:01:37]} 16. Bg5 {[%emt 0:14:08]} f6 {[%emt 0:01:25]} 17. Bh4 {[%emt 0:00:53]} O-O {[%emt 0:00:33]} 18. Qc4 {[%emt 0:00:27]} Rf7 {[%emt 0:04:35]} 19. Rad1 {[%emt 0:00:29]} Bf8 {[%emt 0:00:36]} 20. Bg3 Rae7 {[%emt 0:09:34]} 21. Rf1 {[%emt 0:04:05]} Re8 {[%emt 0:00:37]} 22. Nd2 {[%emt 0:00:40]} Nd4 0-1

[Event "10th Iberoamericano-ch 2024"]
[Site "Linares"]
[Date "2024.09.30"]
[Round "8.22"]
[White "Jimenez Fernandez, Rebeca"]
[Black "Marin Ferragut, Pau"]
[Result "0-1"]
[ECO "B94"]
[WhiteElo "2097"]
[BlackElo "2348"]
[Annotator "RC"]
[PlyCount "68"]
[EventDate "2024.09.25"]
[EventType "swiss"]
[EventCountry "ESP"]
[SourceTitle "playchess.com"]
[Source "ChessBase"]
[SourceQuality "1"]
[TimeControl "5400+30"]

1. e4 {[%emt 0:00:02]} c5 {[%emt 0:00:20]} 2. Nf3 {[%emt 0:00:04]} d6 {[%emt 0:00:24]} 3. d4 {[%emt 0:00:05]} cxd4 {[%emt 0:00:32]} 4. Nxd4 {[%emt 0:00:03]} Nf6 {[%emt 0:00:32]} 5. Nc3 {[%emt 0:00:05]} a6 {[%emt 0:00:31]} 6. Bg5 {[%emt 0:00:07]} Nbd7 {[%emt 0:00:19]} 7. f4 {[%emt 0:00:14]} Qc7 {[%emt 0:00:05]} 8. Qe2 {[%emt 0:00:51]} e5 {[%emt 0:00:22]} 9. Nf5 {[%emt 0:07:45]} h6 {[%emt 0:00:35]} 10. Bxf6 {[%emt 0:00:17]} Nxf6 {[%emt 0:00:02]} 11. O-O-O {[%emt 0:01:48]} exf4 {[%emt 0:02:00]} 12. Qd2 {[%emt 0:01:32]} Nxe4 {[%emt 0:20:48]} 13. Nxg7+ {[%emt 0:05:32]} Bxg7 {[%emt 0:01:19]} 14. Nxe4 {[%emt 0:00:14]} O-O {[%emt 0:00:11]} 15. Qxf4 {[%emt 0:09:48]} Qa5 {[%emt 0:08:32]} 16. Nf6+ {[%emt 0:19:33]} Kh8 {[%emt 0:00:36]} 17. Rxd6 {[%emt 0:06:18]} Qxa2 {[%emt 0:04:52]} 18. c3 {[%emt 0:21:57]} Qa5 {[%emt 0:10:02]} 19. Rd5 {[%emt 0:07:25]} Qb6 {[%emt 0:01:53]} 20. Nh5 {[%emt 0:00:55]} Qg6 {[%emt 0:20:32]} 21. Nxg7 {[%emt 0:01:38]} Kxg7 {[%emt 0:01:03]} 22. Rd3 {[%emt 0:01:49]} Qf5 {[%emt 0:11:34]} 23. Rg3+ {[%emt 0:00:52]} Kf6 {[%emt 0:00:10]} 24. Qh4+ {[%emt 0:04:53]} Ke6 {[%emt 0:00:37]} 25. Bc4+ {[%emt 0:06:06]} Kd7 {[%emt 0:00:08]} 26. Rd1+ {[%emt 0:00:42]} Kc6 {[%emt 0:00:34]} 27. Qe7 {[%emt 0:01:51]} Qf4+ {[%emt 0:00:15]} 28. Re3 Be6 {[%emt 0:01:05]} 29. Rde1 {[%emt 0:02:00]} Bxc4 {[%emt 0:01:36]} 30. g3 Qg5 {[%emt 0:01:12]} 31. Qb4 {[%emt 0:01:01]} Qc5 {[%emt 0:00:51]} 32. Qa4+ {[%emt 0:00:08]} b5 {[%emt 0:00:10]} 33. Qa5 {[%emt 0:00:23]} Rfd8 {[%emt 0:01:25]} 34. Re7 {[%emt 0:00:54]} Qd6 {[%emt 0:00:15]} 0-1

[Event "10th Iberoamericano-ch 2024"]
[Site "Linares"]
[Date "2024.09.30"]
[Round "8.23"]
[White "Lorente Serrano, Rosa Adela"]
[Black "Escalona Landi, Samid Eduardo"]
[Result "0-1"]
[ECO "B20"]
[WhiteElo "2087"]
[BlackElo "2305"]
[Annotator "RC"]
[PlyCount "72"]
[EventDate "2024.09.25"]
[EventType "swiss"]
[EventCountry "ESP"]
[SourceTitle "playchess.com"]
[Source "ChessBase"]
[SourceQuality "1"]
[TimeControl "5400+30"]

1. e4 {[%emt 0:00:03]} c5 {[%emt 0:01:01]} 2. Be2 {[%emt 0:00:07]} Nc6 {[%emt 0:00:05]} 3. d3 {[%emt 0:00:00]} g6 4. f4 {[%emt 0:00:00]} Bg7 {[%emt 0:00:10]} 5. Nf3 e6 {[%emt 0:00:09]} 6. O-O {[%emt 0:04:19]} Nge7 {[%emt 0:00:19]} 7. c3 {[%emt 0:00:19]} O-O {[%emt 0:01:52]} 8. Be3 {[%emt 0:03:49]} b6 9. d4 {[%emt 0:10:51]} f5 {[%emt 0:01:16]} 10. e5 Nd5 {[%emt 0:00:00]} 11. Bc1 {[%emt 0:02:19]} cxd4 {[%emt 0:00:19]} 12. cxd4 {[%emt 0:00:04]} Bb7 {[%emt 0:00:00]} 13. Nc3 {[%emt 0:14:32]} Nce7 {[%emt 0:00:01]} 14. a4 {[%emt 0:02:20]} a6 {[%emt 0:00:58]} 15. Bc4 {[%emt 0:02:04]} Qc7 {[%emt 0:00:39]} 16. Nxd5 {[%emt 0:04:16]} Nxd5 {[%emt 0:01:05]} 17. Qe2 {[%emt 0:04:08]} Rfc8 {[%emt 0:00:14]} 18. b3 {[%emt 0:02:51]} b5 {[%emt 0:00:06]} 19. axb5 {[%emt 0:00:15]} axb5 {[%emt 0:00:55]} 20. Rxa8 {[%emt 0:00:22]} Rxa8 {[%emt 0:00:07]} 21. Bxd5 {[%emt 0:05:56]} Bxd5 {[%emt 0:05:11]} 22. Qxb5 {[%emt 0:00:30]} Rb8 {[%emt 0:00:08]} 23. Qa4 {[%emt 0:11:39]} Bxb3 {[%emt 0:00:30]} 24. Qa1 {[%emt 0:00:56]} Bf8 {[%emt 0:00:26]} 25. Bd2 {[%emt 0:02:07]} Bd5 {[%emt 0:00:10]} 26. Rc1 {[%emt 0:01:59]} Qb7 {[%emt 0:00:09]} 27. Ne1 {[%emt 0:07:24]} Be7 {[%emt 0:01:09]} 28. Qa4 {[%emt 0:00:20]} Bh4 {[%emt 0:00:23]} 29. g3 Be7 {[%emt 0:01:02]} 30. Qc2 {[%emt 0:07:41]} Ba3 {[%emt 0:00:30]} 31. Ra1 {[%emt 0:00:10]} Bb2 {[%emt 0:00:19]} 32. Ra4 {[%emt 0:02:09]} Bb3 {[%emt 0:00:36]} 33. Qxb2 {[%emt 0:01:54]} Bxa4 {[%emt 0:00:09]} 34. Qxb7 {[%emt 0:00:00]} Rxb7 {[%emt 0:00:28]} 35. Nd3 {[%emt 0:00:00]} Rb1+ {[%emt 0:00:11]} 36. Kf2 {[%emt 0:00:26]} Rh1 {[%emt 0:00:09]} 0-1

[Event "10th Iberoamericano-ch 2024"]
[Site "Linares"]
[Date "2024.09.30"]
[Round "8.24"]
[White "Noboa Silva, Kevin"]
[Black "Li Chen, Helena Joana"]
[Result "1-0"]
[ECO "A80"]
[WhiteElo "2270"]
[BlackElo "2068"]
[Annotator "RC"]
[PlyCount "57"]
[EventDate "2024.09.25"]
[EventType "swiss"]
[EventCountry "ESP"]
[SourceTitle "playchess.com"]
[Source "ChessBase"]
[SourceQuality "1"]
[TimeControl "5400+30"]

1. d4 {[%emt 0:01:19]} f5 {[%emt 0:00:13]} 2. Nf3 {[%emt 0:00:20]} Nf6 {[%emt 0:00:05]} 3. e3 {[%emt 0:00:10]} e6 {[%emt 0:00:47]} 4. c4 {[%emt 0:00:45]} b6 {[%emt 0:00:48]} 5. Be2 {[%emt 0:00:42]} Bb7 {[%emt 0:00:35]} 6. O-O {[%emt 0:01:08]} Be7 {[%emt 0:01:02]} 7. Nc3 {[%emt 0:00:26]} Ne4 {[%emt 0:05:10]} 8. Nd2 {[%emt 0:02:34]} Nxc3 {[%emt 0:01:33]} 9. bxc3 {[%emt 0:00:05]} c5 {[%emt 0:02:31]} 10. d5 {[%emt 0:03:12]} e5 {[%emt 0:07:51]} 11. f4 {[%emt 0:03:17]} e4 {[%emt 0:02:33]} 12. g4 {[%emt 0:02:52]} g6 {[%emt 0:00:07]} 13. Kh1 {[%emt 0:05:06]} Bf6 {[%emt 0:06:19]} 14. gxf5 {[%emt 0:04:38]} Bxc3 {[%emt 0:02:21]} 15. Rb1 {[%emt 0:00:14]} gxf5 {[%emt 0:00:06]} 16. Rg1 {[%emt 0:00:59]} Na6 {[%emt 0:03:43]} 17. Rb3 {[%emt 0:03:07]} Bf6 {[%emt 0:00:34]} 18. Bf1 {[%emt 0:00:36]} Ke7 {[%emt 0:13:56]} 19. Qh5 {[%emt 0:02:32]} Qf8 {[%emt 0:05:59]} 20. Qxf5 {[%emt 0:00:54]} Qh6 {[%emt 0:00:06]} 21. Bh3 {[%emt 0:04:32]} Bc8 {[%emt 0:01:03]} 22. d6+ {[%emt 0:01:46]} Kf8 {[%emt 0:01:21]} 23. Bb2 {[%emt 0:01:54]} Rg8 {[%emt 0:03:51]} 24. Rxg8+ {[%emt 0:01:14]} Kxg8 {[%emt 0:00:14]} 25. Bxf6 {[%emt 0:00:37]} Qg6 {[%emt 0:00:51]} 26. Qd5+ {[%emt 0:00:35]} Kf8 {[%emt 0:00:06]} 27. Be7+ {[%emt 0:00:32]} Kg7 {[%emt 0:00:42]} 28. Rb1 {[%emt 0:00:26]} Kh6 {[%emt 0:00:25]} 29. Bf8+ {[%emt 0:00:14]} 1-0